bitfinex/quotes_ETHUSD_20230109
["timestamp","ask_amount","ask_price","bid_price","bid_amount"]
[1673285076827,22.370825,1345.0,1344.7,0.23]
[1673285077038,11.000945,1345.0,1344.7,7.66639]
[1673285077251,11.000945,1345.0,1344.7,7.7326]
[1673285077502,11.000945,1345.0,1344.7,15.1692]
[1673285077807,7.501065,1345.0,1344.7,7.73258]
[1673285077980,0.066005,1345.0,1344.7,15.16918]
[1673285078197,5e-06,1345.0,1344.7,26.40344064]
[1673285079865,5e-06,1345.0,1344.8,3.5]
[1673285080075,5e-06,1345.0,1344.9,7.66549]
[1673285080338,5e-06,1345.0,1344.9,7.73149]
[1673285081230,5e-06,1345.0,1344.9,15.16698]
[1673285082068,5e-06,1345.0,1344.9,22.60247]
[1673285084957,5e-06,1345.0,1344.9,22.59955212]
[1673285085534,5e-06,1345.0,1344.9,0.29308212]
[1673285085766,5e-06,1345.0,1344.9,0.22708212]
[1673285088489,8.54435318,1345.0,1344.9,0.22708212]
[1673285088700,24.64966272,1345.0,1344.9,0.22708212]
[1673285088943,24.64966272,1345.0,1344.8,16.1194]
[1673285089151,18.88627933,1345.0,1344.8,0.066]
[1673285089346,18.88627933,1345.0,1344.7,30.50515]
[1673285089347,11.45133933,1345.0,1344.7,30.50515]
[1673285089552,10.28190979,1345.0,1344.8,0.23]
[1673285089764,17.71684979,1345.0,1344.8,0.23]
[1673285089978,17.71684979,1345.0,1344.7,0.066]
[1673285089979,28.65178979,1345.0,1344.7,0.066]
[1673285090192,1.10940818,1344.9,1344.5,16.3491]
[1673285090389,7.43607,1344.8,1344.5,16.4151]
[1673285090599,7.50207,1344.8,1344.5,16.4151]
[1673285090810,0.066,1344.8,1344.7,14.0]
[1673285091038,0.066,1344.9,1344.8,3.5]
[1673285091261,5e-06,1345.0,1344.8,24.82015064]
[1673285091423,5e-06,1345.0,1344.9,1.327]
[1673285091859,5e-06,1345.0,1344.9,0.23]
[1673285092599,5e-06,1345.0,1344.9,26.33413064]
[1673285092959,5e-06,1345.0,1344.9,18.96464064]
[1673285093527,5e-06,1345.0,1344.9,27.71913064]
[1673285094309,5e-06,1345.0,1344.9,20.28364064]
[1673285094943,5e-06,1345.0,1344.9,12.84815064]
[1673285095257,5e-06,1345.0,1344.9,27.71913064]
[1673285096464,1.08408357,1345.1,1344.9,27.71913064]
[1673285096678,2.75564018,1345.1,1345.0,4.02766064]
[1673285096889,2.75564018,1345.1,1345.0,26.33248064]
[1673285097206,2.75564018,1345.1,1345.0,26.39848064]
[1673285097433,2.75564018,1345.1,1345.0,11.52860064]
[1673285097666,1.67155661,1345.1,1345.0,4.09366064]
[1673285097880,1.67155661,1345.1,1345.0,0.23]
[1673285098147,18.77859466,1345.1,1344.8,29.923]
[1673285098306,18.77859466,1345.1,1344.8,14.066]
[1673285098307,1.66758628,1345.0,1344.8,14.066]
[1673285098729,1.66758628,1345.0,1344.8,21.50204]
[1673285098730,3.89632843,1345.0,1344.8,21.50204]
[1673285098890,1.66758628,1344.9,1344.8,28.93808]
[1673285099100,1.66758628,1344.9,1344.8,21.50204]
[1673285099731,3.96232843,1345.0,1344.8,21.50204]
[1673285099941,3.89632843,1345.0,1344.8,21.50204]
[1673285100151,1.66758628,1345.0,1344.8,21.50204]
[1673285100408,3.89632843,1345.0,1344.8,21.50204]
[1673285100633,1.66758628,1344.9,1344.8,14.066]
[1673285100991,1.66758628,1344.9,1344.8,21.73204]
[1673285101241,1.66758628,1344.9,1344.8,29.16808]
[1673285102253,1.66758628,1344.9,1344.8,36.60412]
[1673285102934,1.66758628,1344.9,1344.8,29.16808]
[1673285103149,3.89632843,1344.9,1344.8,36.60412]
[1673285103568,3.89632843,1344.9,1344.8,29.16808]
[1673285103883,3.89632843,1344.9,1344.8,21.73204]
[1673285104249,3.89632843,1344.9,1344.8,29.16808]
[1673285104476,3.89632843,1344.9,1344.8,36.60412]
[1673285105242,3.89632843,1344.9,1344.8,29.16808]
[1673285105456,3.89632843,1344.9,1344.8,36.60412]
[1673285106036,3.89632843,1344.9,1344.8,0.296]
[1673285106246,3.89632843,1344.9,1344.8,0.23]
[1673285106247,2.90357342,1344.9,1344.8,0.23]
[1673285106505,2.90357342,1344.9,1344.7,0.23]
[1673285106820,2.78420175,1344.8,1344.7,7.66651]
[1673285106978,2.78420175,1344.8,1344.7,15.16911]
[1673285107184,2.78420175,1344.8,1344.7,7.73251]
[1673285107432,2.78420175,1344.8,1344.7,0.296]
[1673285107765,1.67052105,1344.8,1344.7,0.23]
[1673285108077,3.8992632,1344.8,1344.7,0.23]
[1673285108296,1.67052105,1344.8,1344.7,0.23]
[1673285108482,3.9012632,1344.8,1344.7,0.23]
[1673285108661,3.8992632,1344.8,1344.7,0.23]
[1673285109513,1.67052105,1344.8,1344.7,0.23]
[1673285109758,26.2073832,1344.8,1344.7,0.23]
[1673285109927,3.9652632,1344.8,1344.7,0.23]
[1673285110131,11.3353032,1344.8,1344.7,0.23]
[1673285110393,3.9652632,1344.8,1344.7,0.23]
[1673285110602,3.9012632,1344.8,1344.7,0.23]
[1673285110914,18.7713432,1344.8,1344.7,0.23]
[1673285111090,18.8373432,1344.8,1344.7,0.23]
[1673285111301,18.8373432,1344.8,1344.6,0.23]
[1673285111302,11.4013032,1344.8,1344.6,0.23]
[1673285111624,1.11379775,1344.7,1344.6,0.23]
[1673285112189,8.55039775,1344.7,1344.5,0.07997594]
[1673285112357,1.11379775,1344.6,1344.5,3.0]
[1673285112701,10.2964347,1344.7,1344.6,1.1074315]
[1673285112916,10.0663756,1344.7,1344.6,1.1074315]
[1673285113439,17.5031956,1344.7,1344.6,1.1074315]
[1673285113753,10.0663756,1344.7,1344.6,1.1074315]
[1673285113932,10.0663756,1344.7,1344.6,1.3374315]
[1673285114137,17.5031956,1344.7,1344.6,1.3374315]
[1673285114503,2.8598347,1344.7,1344.6,1.3374315]
[1673285114717,2.7938347,1344.7,1344.6,1.3374315]
[1673285115332,10.2304347,1344.7,1344.6,1.3374315]
[1673285115506,10.2964347,1344.7,1344.6,1.3374315]
[1673285115722,2.8598347,1344.7,1344.6,1.3374315]
[1673285115957,16.55323695,1344.7,1344.6,1.3374315]
[1673285116168,12.83327329,1344.7,1344.6,1.3374315]
[1673285116360,1.74603695,1344.7,1344.6,8.7745815]
[1673285116589,1.68003695,1344.7,1344.6,1.4034315]
[1673285116916,1.68003695,1344.7,1344.6,1.3374315]
[1673285117300,9.11663695,1344.7,1344.6,1.3374315]
[1673285117639,1.74603695,1344.7,1344.6,16.2117315]
[1673285117848,1.11342818,1344.7,1344.6,7.41215229]
[1673285118762,1.11342818,1344.7,1344.6,2.5004315]
[1673285118972,1.11342818,1344.7,1344.6,1.1074315]
[1673285119760,2.78394923,1344.7,1344.6,1.1074315]
[1673285120912,2.78394923,1344.7,1344.6,1.3374315]
[1673285121125,1.11342818,1344.7,1344.6,1.3374315]
[1673285121345,2.78394923,1344.7,1344.6,1.3374315]
[1673285123137,9.10712105,1344.7,1344.6,1.3374315]
[1673285123322,9.17312105,1344.7,1344.6,1.3374315]
[1673285123657,1.73652105,1344.7,1344.6,1.3374315]
[1673285123864,10.22047386,1344.7,1344.6,1.3374315]
[1673285124018,10.28647386,1344.7,1344.6,1.3374315]
[1673285124443,17.72307386,1344.7,1344.6,1.3374315]
[1673285124654,10.28647386,1344.7,1344.6,1.3374315]
[1673285125442,17.72307386,1344.7,1344.6,1.3374315]
[1673285125649,18.13373038,1344.7,1344.6,1.3374315]
[1673285126448,17.02037757,1344.7,1344.6,1.3374315]
[1673285127098,18.13369417,1344.7,1344.6,1.3374315]
[1673285127311,10.69709417,1344.7,1344.6,1.3374315]
[1673285127629,25.57029417,1344.7,1344.6,1.3374315]
[1673285127842,27.23776579,1344.7,1344.6,1.3374315]
[1673285128025,27.79598689,1344.7,1344.6,1.3374315]
[1673285128765,27.2372504,1344.7,1344.6,1.3374315]
[1673285129004,27.2372504,1344.7,1344.6,1.1074315]
[1673285129005,29.46599255,1344.7,1344.6,1.1074315]
[1673285129220,27.79598689,1344.7,1344.6,1.1074315]
[1673285129909,30.58197115,1344.7,1344.6,1.1074315]
[1673285130120,31.13987115,1344.7,1344.6,1.1074315]
[1673285130388,42.01861569,1344.7,1344.6,1.5e-06]
[1673285130959,34.58201569,1344.7,1344.6,1.5e-06]
[1673285131223,38.90301569,1344.7,1344.6,1.5e-06]
[1673285131382,13.39549229,1344.7,1344.6,1.5e-06]
[1673285131590,18.04960538,1344.7,1344.6,1.5e-06]
[1673285132234,10.61300538,1344.7,1344.6,1.5e-06]
[1673285132444,24.88981569,1344.7,1344.6,1.5e-06]
[1673285132659,21.54960538,1344.7,1344.6,1.5e-06]
[1673285132889,32.32641569,1344.7,1344.6,1.5e-06]
[1673285133269,41.09001569,1344.7,1344.6,1.5e-06]
[1673285135899,37.74980538,1344.7,1344.6,1.5e-06]
[1673285137323,41.09001569,1344.7,1344.6,1.5e-06]
[1673285137640,42.41701569,1344.7,1344.6,1.5e-06]
[1673285138746,39.07680538,1344.7,1344.6,1.5e-06]
[1673285138998,39.83316256,1344.7,1344.6,1.5e-06]
[1673285139226,43.1704205,1344.7,1344.6,1.5e-06]
[1673285139605,43.72330408,1344.7,1344.6,1.5e-06]
[1673285141096,39.83316256,1344.7,1344.6,1.5e-06]
[1673285141299,43.16980829,1344.7,1344.6,1.5e-06]
[1673285141692,52.33880829,1344.7,1344.6,1.5e-06]
[1673285141909,60.32890408,1344.7,1344.6,1.5e-06]
[1673285144267,22.31343,1344.5,1344.2,1.04172795]
[1673285144471,2.37776923,1344.3,1344.2,1.04172795]
[1673285144683,30.22058351,1344.3,1344.2,1.04172795]
[1673285144895,30.28658351,1344.3,1344.2,1.04172795]
[1673285145214,33.28658351,1344.3,1344.2,1.04172795]
[1673285146116,31.61885987,1344.3,1344.2,1.04172795]
[1673285146366,36.04867394,1344.3,1344.2,1.04172795]
[1673285146553,37.71639758,1344.3,1344.1,0.03900593]
[1673285146783,3.79766064,1344.2,1344.1,0.03900593]
[1673285146953,26.11574064,1344.2,1344.1,0.03900593]
[1673285147183,26.18174064,1344.2,1344.1,0.03900593]
[1673285149606,28.28554167,1344.2,1344.1,0.03900593]
[1673285150559,29.3973109,1344.2,1344.1,0.03900593]
[1673285151162,32.38903454,1344.2,1344.1,0.03900593]
[1673285151406,31.27726531,1344.2,1344.1,0.03900593]
[1673285152016,32.38839197,1344.2,1344.1,0.03900593]
[1673285152245,30.72066833,1344.2,1344.1,0.03900593]
[1673285152633,32.38839197,1344.2,1344.1,0.03900593]
[1673285153501,30.72066833,1344.2,1344.1,0.03900593]
[1673285153942,35.38839197,1344.2,1344.1,0.03900593]
[1673285155164,8.96746167,1344.2,1344.1,0.03900593]
[1673285155375,15.4141473,1344.2,1344.1,0.03900593]
[1673285156106,22.8535073,1344.2,1344.1,0.03900593]
[1673285156460,15.4141473,1344.2,1344.1,0.03900593]
[1673285156864,22.8535073,1344.2,1344.1,0.03900593]
[1673285157287,26.00526063,1344.2,1344.1,0.03900593]
[1673285158358,11.12654063,1344.2,1344.1,0.03900593]
[1673285158744,33.44462063,1344.2,1344.1,0.03900593]
[1673285160427,35.11234427,1344.2,1344.1,0.03900593]
[1673285161416,38.10994913,1344.2,1344.1,0.03900593]
[1673285161598,36.99758846,1344.2,1344.1,0.03900593]
[1673285161810,35.88631761,1344.2,1344.1,0.03900593]
[1673285162213,38.10994913,1344.2,1344.1,0.03900593]
[1673285165261,36.44222549,1344.2,1344.1,0.03900593]
[1673285166126,39.22176489,1344.2,1344.1,0.03900593]
[1673285166748,38.31913337,1344.2,1344.1,0.03900593]
[1673285167466,38.87504125,1344.2,1344.1,0.03900593]
[1673285167945,38.87504125,1344.2,1344.1,0.03549929]
[1673285169097,38.87504125,1344.2,1344.1,9.29e-06]
[1673285169470,46.72504125,1344.2,1344.1,9.29e-06]
[1673285169670,3.5,1344.1,1343.9,0.03336895]
[1673285169886,11.2452388,1344.0,1343.9,0.03336895]
[1673285170148,33.98725321,1344.0,1343.9,0.03336895]
[1673285170319,29.24053465,1344.0,1343.9,0.03336895]
[1673285170538,30.55932756,1344.0,1343.9,0.03336895]
[1673285170882,28.89053465,1344.0,1343.9,0.03336895]
[1673285171457,31.67211281,1344.0,1343.9,0.03336895]
[1673285172202,29.44695786,1344.0,1343.9,0.03336895]
[1673285172405,31.67222171,1344.0,1343.9,0.03336895]
[1673285172618,38.06835991,1344.0,1343.9,0.03336895]
[1673285172978,33.0615179,1344.0,1343.9,0.03336895]
[1673285173200,35.28678175,1344.0,1343.9,0.03336895]
[1673285173718,35.28710141,1344.0,1343.9,0.03336895]
[1673285174527,33.6183771,1344.0,1343.9,0.03336895]
[1673285175137,36.39995526,1344.0,1343.9,0.03336895]
[1673285176770,37.71595526,1344.0,1343.9,0.03336895]
[1673285177078,35.49069141,1344.0,1343.9,0.03336895]
[1673285178190,32.70911325,1344.0,1343.9,0.03336895]
[1673285178625,35.49014431,1344.0,1343.9,0.03336895]
[1673285178964,32.70911325,1344.0,1343.9,0.03336895]
[1673285179175,35.49016017,1344.0,1343.9,0.03336895]
[1673285179495,35.49063506,1344.0,1343.9,0.03336895]
[1673285180860,34.17463506,1344.0,1343.9,0.03336895]
[1673285181177,33.61643506,1344.0,1343.9,0.03336895]
[1673285181542,35.84152438,1344.0,1343.9,0.03336895]
[1673285183435,33.61643506,1344.0,1343.9,0.03336895]
[1673285184589,33.61643506,1344.0,1343.9,8.95e-06]
[1673285186938,34.94343506,1344.0,1343.9,8.95e-06]
[1673285187690,36.82680704,1344.0,1343.9,8.95e-06]
[1673285188733,33.48891325,1344.0,1343.9,8.95e-06]
[1673285188946,36.82680704,1344.0,1343.9,8.95e-06]
[1673285190596,33.48891325,1344.0,1343.9,8.95e-06]
[1673285190950,36.82680704,1344.0,1343.9,8.95e-06]
[1673285191102,33.48891325,1344.0,1343.9,8.95e-06]
[1673285191318,36.82680704,1344.0,1343.9,8.95e-06]
[1673285191577,45.20700704,1344.0,1343.9,8.95e-06]
[1673285193375,43.88000704,1344.0,1343.9,8.95e-06]
[1673285196853,42.55300704,1344.0,1343.9,8.95e-06]
[1673285198162,44.55300704,1344.0,1343.9,8.95e-06]
[1673285199940,44.55028011,1344.0,1343.9,8.95e-06]
[1673285200360,44.55481968,1344.0,1343.9,8.95e-06]
[1673285200570,41.21238632,1344.0,1343.9,8.95e-06]
[1673285200827,44.55472456,1344.0,1343.9,8.95e-06]
[1673285201002,44.5547235,1344.0,1343.9,8.95e-06]
[1673285203612,41.21238632,1344.0,1343.9,8.95e-06]
[1673285203830,45.10252784,1344.0,1343.9,8.95e-06]
[1673285204037,41.21238632,1344.0,1343.9,8.95e-06]
[1673285204301,45.10252784,1344.0,1343.9,8.95e-06]
[1673285205348,52.88812784,1344.0,1343.9,8.95e-06]
[1673285212135,52.90201399,1344.0,1343.9,8.95e-06]
[1673285212610,48.99798632,1344.0,1343.9,8.95e-06]
[1673285213411,52.9021277,1344.0,1343.9,8.95e-06]
[1673285213606,52.90209971,1344.0,1343.9,8.95e-06]
[1673285214654,52.90241809,1344.0,1343.9,8.95e-06]
[1673285215162,48.99798632,1344.0,1343.9,8.95e-06]
[1673285215298,52.90240227,1344.0,1343.9,8.95e-06]
[1673285215510,48.99798632,1344.0,1343.9,8.95e-06]
[1673285215757,52.90244063,1344.0,1343.9,8.95e-06]
[1673285216557,52.90236212,1344.0,1343.9,8.95e-06]
[1673285216805,50.32498632,1344.0,1343.9,8.95e-06]
[1673285217446,54.94452958,1344.0,1343.9,8.95e-06]
[1673285217613,50.32498632,1344.0,1343.9,8.95e-06]
[1673285218712,48.99798632,1344.0,1343.9,8.95e-06]
[1673285219073,53.61752958,1344.0,1343.9,8.95e-06]
[1673285219552,48.99798632,1344.0,1343.9,8.95e-06]
[1673285220892,53.61752958,1344.0,1343.9,8.95e-06]
[1673285221337,48.99798632,1344.0,1343.9,8.95e-06]
[1673285222052,2.32965449,1343.9,1343.8,0.03349674]
[1673285222268,40.98783345,1343.9,1343.8,0.03349674]
[1673285222487,41.05383345,1343.9,1343.8,0.03349674]
[1673285222690,44.05383345,1343.9,1343.8,0.03349674]
[1673285223349,40.55383345,1343.9,1343.8,0.03349674]
[1673285231868,25.82474,1343.8,1343.7,0.02334441]
[1673285232090,40.09178408,1343.8,1343.7,0.02334441]
[1673285232978,40.64847823,1343.8,1343.7,0.02334441]
[1673285233199,41.20677823,1343.8,1343.7,0.02334441]
[1673285233449,49.15377823,1343.8,1343.7,0.02334441]
[1673285235568,49.16329413,1343.8,1343.7,0.02334441]
[1673285235772,41.75859989,1343.8,1343.7,0.02334441]
[1673285236008,29.54519039,1343.8,1343.7,0.02334441]
[1673285237823,32.54519039,1343.8,1343.7,0.02334441]
[1673285240293,29.19791654,1343.8,1343.7,0.02334441]
[1673285240622,33.10261078,1343.8,1343.7,0.02334441]
[1673285241354,32.54556724,1343.8,1343.7,0.02334441]
[1673285241570,39.06779725,1343.8,1343.7,0.02334441]
[1673285242754,35.72014655,1343.8,1343.7,0.02334441]
[1673285243127,39.62484079,1343.8,1343.7,0.02334441]
[1673285246282,63.52641949,1343.8,1343.4,0.064]
[1673285246496,7.14622936,1343.5,1343.4,0.002]
[1673285246749,36.63662064,1343.5,1343.4,0.002]
[1673285246961,39.98218225,1343.5,1343.3,0.04134611]
[1673285247174,10.08562191,1343.4,1343.3,0.04134611]
[1673285247387,37.11000626,1343.4,1343.3,0.04134611]
[1673285247698,33.61005138,1343.4,1343.3,0.04134611]
[1673285247911,30.82204499,1343.4,1343.3,0.04134611]
[1673285248964,33.60832247,1343.4,1343.3,0.04134611]
[1673285249120,8.87886708,1343.4,1343.3,0.04134611]
[1673285249496,1.18028508,1343.4,1343.3,9.14069611]
[1673285249643,0.01,1343.4,1343.3,9.19669611]
[1673285249860,1.11428508,1343.4,1343.3,9.20669611]
[1673285250120,2.85194284,1343.5,1343.3,9.20669611]
[1673285250309,2.78594284,1343.5,1343.4,3.334]
[1673285252081,1.11428508,1343.5,1343.4,3.334]
[1673285252587,2.78594284,1343.5,1343.4,1.667]
[1673285253708,2.78794284,1343.5,1343.4,1.667]
[1673285253900,1.11428508,1343.5,1343.4,1.667]
[1673285255599,2.78594284,1343.5,1343.4,1.667]
[1673285255757,1.11428508,1343.5,1343.4,1.667]
[1673285255967,2.78594284,1343.5,1343.4,1.667]
[1673285256179,1.67165776,1343.5,1343.3,1.77434611]
[1673285256420,1.11440364,1343.4,1343.3,1.70834611]
[1673285256663,12.35585428,1343.4,1343.3,1.70834611]
[1673285256877,21.53730204,1343.4,1343.3,0.04134611]
[1673285257110,14.09351204,1343.4,1343.3,0.04134611]
[1673285257260,14.0935624,1343.4,1343.3,0.04134611]
[1673285257482,12.9791084,1343.4,1343.3,0.04134611]
[1673285257853,5.5353184,1343.4,1343.3,0.04134611]
[1673285258033,12.9791084,1343.4,1343.3,0.04134611]
[1673285258243,14.09353466,1343.4,1343.3,0.04134611]
[1673285258429,12.9791084,1343.4,1343.3,0.04134611]
[1673285258779,5.5353184,1343.4,1343.3,0.04134611]
[1673285259207,12.9791084,1343.4,1343.3,0.04134611]
[1673285259692,27.8666884,1343.4,1343.3,0.04134611]
[1673285260758,34.12908243,1343.4,1343.3,0.04134611]
[1673285263062,34.12892414,1343.4,1343.3,0.04134611]
[1673285263266,32.45742467,1343.4,1343.3,0.04134611]
[1673285264097,40.48424536,1343.4,1343.3,0.04134611]
[1673285264413,41.23471995,1343.4,1343.3,0.04134611]
[1673285264627,36.20735289,1343.4,1343.3,0.04134611]
[1673285264871,46.27114266,1343.4,1343.3,0.04134611]
[1673285265258,11.322,1343.3,1343.2,0.03984184]
[1673285265468,52.95678018,1343.3,1343.2,4.184e-05]
[1673285265733,3.5,1343.2,1343.1,0.04134611]
[1673285265894,41.51171954,1343.2,1343.1,0.04134611]
[1673285266243,42.89409175,1343.2,1343.1,0.04134611]
[1673285267035,47.37053014,1343.2,1343.1,6.11e-06]
[1673285267288,54.88240574,1343.2,1343.1,6.11e-06]
[1673285267501,54.88240574,1343.2,1343.0,0.05467585]
[1673285267721,39.29928224,1343.1,1343.0,0.05467585]
[1673285268034,47.17436365,1343.1,1343.0,0.05467585]
[1673285268256,48.48932083,1343.1,1343.0,0.05467585]
[1673285268403,56.02795634,1343.1,1343.0,0.05467585]
[1673285268934,56.03747224,1343.1,1343.0,0.05467585]
[1673285269145,56.03747224,1343.1,1343.0,5.85e-06]
[1673285269395,56.03747224,1343.1,1342.7,0.79923218]
[1673285269396,57.69747224,1343.1,1342.7,0.79923218]
[1673285269560,3.5,1342.8,1342.7,0.79923218]
[1673285269764,33.58614064,1342.8,1342.7,0.79923218]
[1673285269975,26.76372064,1342.8,1342.7,0.79923218]
[1673285270225,29.76372064,1342.8,1342.7,0.79923218]
[1673285271343,22.31660064,1342.8,1342.7,0.79923218]
[1673285271873,29.20502064,1342.8,1342.7,0.79923218]
[1673285272173,21.75790064,1342.8,1342.7,0.79923218]
[1673285272544,29.20502064,1342.8,1342.7,0.79923218]
[1673285272764,21.75790064,1342.8,1342.7,0.79923218]
[1673285273132,29.20502064,1342.8,1342.7,0.79923218]
[1673285274122,21.75790064,1342.8,1342.7,0.79923218]
[1673285274564,29.20502064,1342.8,1342.7,0.79923218]
[1673285274910,21.75790064,1342.8,1342.7,0.79923218]
[1673285275085,29.20502064,1342.8,1342.7,0.79923218]
[1673285276903,6.86366064,1342.8,1342.7,0.79923218]
[1673285277110,6.86366064,1342.8,1342.7,9.94718253]
[1673285277333,6.86366064,1342.8,1342.7,2.56550253]
[1673285277497,6.86366064,1342.8,1342.7,2.49950253]
[1673285278693,7.26942389,1342.8,1342.7,2.49950253]
[1673285278905,7.26942389,1342.8,1342.7,0.79923218]
[1673285279484,4.26942389,1342.8,1342.7,0.79923218]
[1673285279735,4.20342389,1342.8,1342.7,0.79923218]
[1673285280349,4.20342389,1342.8,1342.7,8.24691218]
[1673285280693,3.09450567,1342.8,1342.7,23.20827218]
[1673285280853,0.40576325,1342.8,1342.7,15.76059218]
[1673285281071,0.40576325,1342.8,1342.7,17.42759218]
[1673285281494,0.40576325,1342.8,1342.7,9.97991218]
[1673285282482,0.40576325,1342.8,1342.7,24.87527218]
[1673285285264,0.40576325,1342.8,1342.7,24.52727218]
[1673285285724,0.40576325,1342.8,1342.7,28.02727218]
[1673285285937,0.40576325,1342.8,1342.7,24.52727218]
[1673285286146,0.6246,1343.1,1342.8,3.5]
[1673285286361,3.79766064,1343.0,1342.9,9.11357]
[1673285286577,0.066,1343.1,1342.9,16.62614]
[1673285286886,6.79766064,1343.1,1342.9,16.62614]
[1673285287108,6.86366064,1343.1,1342.9,16.62614]
[1673285288324,3.86366064,1343.1,1343.0,1.662614]
[1673285288567,3.79766064,1343.1,1343.0,1.662614]
[1673285289625,11.24312064,1343.1,1343.0,1.662614]
[1673285289785,11.30912064,1343.1,1342.9,9.17949]
[1673285290113,0.066,1343.1,1342.9,24.07263]
[1673285290461,4.6709206,1343.2,1342.9,24.07263]
[1673285290705,8.46858124,1343.2,1342.9,24.07263]
[1673285290923,4.90998124,1343.1,1342.9,1.733]
[1673285291135,3.79766064,1343.0,1342.9,1.317]
[1673285291356,11.24367064,1343.0,1342.8,9.40964617]
[1673285291498,11.30967064,1343.0,1342.8,9.40964617]
[1673285292236,3.86366064,1343.0,1342.8,16.85666617]
[1673285292448,3.79766064,1343.0,1342.8,8.84396617]
[1673285292901,3.79766064,1343.0,1342.8,1.39694617]
[1673285293110,3.79766064,1343.0,1342.8,1.33094617]
[1673285293498,3.79766064,1343.0,1342.8,16.22497617]
[1673285293713,1.1783206,1343.1,1342.8,23.73809617]
[1673285293922,4.90998124,1343.1,1342.9,1.317]
[1673285294134,1.1123206,1343.1,1342.9,16.20978]
[1673285294348,1.1123206,1343.1,1343.0,7.44601]
[1673285294589,1.1123206,1343.1,1343.0,0.066]
[1673285294802,1.1123206,1343.1,1342.9,16.2756]
[1673285295126,1.1123206,1343.1,1342.9,23.722]
[1673285295963,1.1123206,1343.1,1342.9,16.2756]
[1673285296175,1.1123206,1343.1,1342.9,8.82925]
[1673285296759,1.1123206,1343.1,1342.9,16.27582]
[1673285297090,2.7808015,1343.1,1342.9,16.27582]
[1673285297279,2.7808015,1343.1,1342.9,23.72239]
[1673285298281,5.8468015,1343.2,1343.0,1.329]
[1673285298439,5.8468015,1343.2,1343.1,31.09984]
[1673285298440,1.1783206,1343.2,1343.1,31.09984]
[1673285298805,0.066,1343.3,1343.1,31.39584]
[1673285299128,2.7808015,1343.4,1343.1,30.07784]
[1673285299276,2.7808015,1343.4,1343.3,1.328]
[1673285299697,2.7808015,1343.4,1343.3,23.66105]
[1673285299955,2.7808015,1343.4,1343.3,23.72705]
[1673285300122,1.6684809,1343.4,1343.3,23.72705]
[1673285300887,3.8931221,1343.4,1343.3,8.83835]
[1673285301424,1.6684809,1343.4,1343.3,8.83835]
[1673285301639,3.8931221,1343.4,1343.3,16.2827]
[1673285301797,3.8931221,1343.4,1343.3,8.83835]
[1673285302330,2.78145599,1343.4,1343.3,23.72705]
[1673285302896,1.11297509,1343.4,1343.3,23.72705]
[1673285303319,1.11297509,1343.4,1343.3,25.05605]
[1673285303515,2.84745599,1343.5,1343.3,25.05605]
[1673285303727,2.78145599,1343.5,1343.4,24.98537]
[1673285303917,2.78145599,1343.5,1343.4,25.05137]
[1673285304760,1.11297509,1343.5,1343.4,25.05137]
[1673285306052,2.84745599,1343.6,1343.4,25.05137]
[1673285306245,1.11297509,1343.6,1343.5,1.323]
[1673285306455,1.11297509,1343.6,1343.5,23.65272]
[1673285306684,1.11297509,1343.6,1343.5,23.71872]
[1673285307266,2.84745599,1343.7,1343.5,23.71872]
[1673285307577,2.78145599,1343.7,1343.6,1.328]
[1673285307806,5.78145599,1343.7,1343.6,23.65607]
[1673285308018,5.84745599,1343.7,1343.6,8.83669]
[1673285308421,6.9591221,1343.7,1343.6,1.394]
[1673285308628,6.9591221,1343.7,1343.6,1.328]
[1673285309732,6.9591221,1343.7,1343.6,16.21338]
[1673285309924,6.9591221,1343.7,1343.6,8.83669]
[1673285310100,6.9591221,1343.7,1343.6,1.394]
[1673285310310,6.9591221,1343.7,1343.6,1.32411323]
[1673285311202,6.9591221,1343.7,1343.5,8.8379]
[1673285311413,8.55348689,1343.6,1343.5,0.066]
[1673285311571,1.73219533,1343.6,1343.4,7.44364]
[1673285311781,1.110843,1343.5,1343.4,14.95328]
[1673285312020,1.110843,1343.5,1343.4,22.39707]
[1673285313252,1.110843,1343.5,1343.4,14.95328]
[1673285314462,1.10690842,1343.5,1343.4,14.95328]
[1673285314636,1.10690842,1343.5,1343.4,7.50964]
[1673285315705,1.10690842,1343.5,1343.4,22.39722]
[1673285316421,1.66619533,1343.6,1343.4,22.39722]
[1673285317562,2.07804478,1343.6,1343.4,22.39722]
[1673285318236,0.41184945,1343.6,1343.4,22.39722]
[1673285318454,0.41184945,1343.6,1343.4,23.72622]
[1673285318665,14.98405243,1343.7,1343.4,23.72622]
[1673285320218,14.97453653,1343.7,1343.4,23.72622]
[1673285322401,1.66619533,1343.6,1343.4,23.72622]
[1673285324288,2.77778134,1343.6,1343.4,23.72622]
[1673285324616,1.11158601,1343.5,1343.4,23.72622]
[1673285324837,1.11158601,1343.5,1343.4,23.95622]
[1673285325807,1.66619533,1343.6,1343.4,23.95622]
[1673285325808,2.77778134,1343.6,1343.4,23.95622]
[1673285326648,2.77778134,1343.6,1343.4,22.62722]
[1673285327232,1.11158601,1343.5,1343.4,22.62722]
[1673285329170,1.11158601,1343.5,1343.4,0.296]
[1673285329478,2.77778134,1343.5,1343.3,17.24823]
[1673285329689,2.77778134,1343.5,1343.3,32.13693]
[1673285329857,2.77778134,1343.5,1343.3,23.71763]
[1673285330904,2.77778134,1343.5,1343.3,16.27328]
[1673285331276,2.77778134,1343.5,1343.3,23.71763]
[1673285331588,1.11158601,1343.4,1343.3,23.71763]
[1673285331893,1.11158601,1343.4,1343.3,23.94763]
[1673285332687,1.11158601,1343.4,1343.3,0.296]
[1673285332896,1.11158601,1343.4,1343.2,24.45224172]
[1673285332897,1.11158601,1343.4,1343.2,23.18962172]
[1673285333320,1.11158601,1343.3,1343.2,15.7298]
[1673285333529,2.77778134,1343.3,1343.2,0.066]
[1673285333746,2.77778134,1343.3,1343.0,7.44598]
[1673285333747,5.05171879,1343.3,1343.0,7.44598]
[1673285333995,1.11158601,1343.2,1343.0,14.95799]
[1673285334153,1.11158601,1343.2,1343.0,7.51198]
[1673285334651,1.11158601,1343.2,1343.0,0.066]
[1673285334794,1.11158601,1343.2,1342.9,31.98741913]
[1673285335005,1.11158601,1343.2,1342.9,39.43374913]
[1673285335911,8.55662601,1343.2,1342.9,24.54121913]
[1673285336084,1.17758601,1343.2,1342.9,31.98775913]
[1673285336260,2.77778134,1343.2,1342.9,46.88089913]
[1673285336464,2.77778134,1343.2,1342.9,39.43432913]
[1673285336713,2.77778134,1343.2,1342.9,46.88089913]
[1673285337350,1.11158601,1343.1,1342.9,46.88089913]
[1673285337537,1.1151622,1343.1,1342.9,46.88089913]
[1673285337945,1.1151622,1343.1,1342.9,7.50865913]
[1673285338158,1.1151622,1343.1,1342.9,0.06211913]
[1673285338389,1.1151622,1343.1,1342.9,7.4463]
[1673285338603,9.53361984,1343.1,1342.9,0.06211913]